bitfinex/quotes_BTCUSD_20241226
["timestamp","ask_amount","ask_price","bid_price","bid_amount"]
[1735248200282,0.00130739,95617.0,95610.0,0.10398632]
[1735248201031,0.00130739,95617.0,95611.0,0.41836]
[1735248201202,0.00130739,95617.0,95612.0,0.10398632]
[1735248201604,0.00130739,95617.0,95613.0,0.209176]
[1735248201822,0.00330739,95617.0,95614.0,0.10398632]
[1735248202026,0.00230739,95617.0,95614.0,0.10398632]
[1735248202264,0.001,95617.0,95615.0,0.209172]
[1735248202374,0.001,95617.0,95616.0,0.10398632]
[1735248202575,0.13719031,95618.0,95617.0,0.209167]
[1735248202777,0.13719031,95618.0,95617.0,0.31315332]
[1735248202977,0.13719031,95618.0,95617.0,0.10398632]
[1735248205296,0.13819031,95618.0,95617.0,0.11198632]
[1735248205864,0.13919031,95618.0,95617.0,0.12098632]
[1735248207030,0.13919031,95618.0,95617.0,0.12053544]
[1735248207031,0.13936131,95618.0,95617.0,0.12053544]
[1735248208146,0.00232616,95618.0,95617.0,0.12053544]
[1735248209696,0.01193456,95621.0,95618.0,0.41833]
[1735248209902,0.01193456,95621.0,95619.0,0.10398632]
[1735248210131,0.00130725,95627.0,95620.0,0.20916]
[1735248210340,0.00130725,95627.0,95621.0,0.10398632]
[1735248210541,0.00130721,95626.0,95621.0,0.10398632]
[1735248210757,0.00130727,95625.0,95621.0,0.10398632]
[1735248211759,0.00130727,95627.0,95621.0,0.10398632]
[1735248212639,0.001,95625.0,95621.0,0.11298632]
[1735248212878,0.001,95625.0,95621.0,0.10798632]
[1735248213318,0.00230727,95627.0,95621.0,0.11298632]
[1735248214141,0.00130722,95626.0,95621.0,0.11298632]
[1735248214528,0.02084116,95637.0,95621.0,0.11298632]
[1735248214730,5.167e-05,95628.0,95621.0,0.11298632]
[1735248214932,0.001,95627.0,95622.0,0.209156]
[1735248215157,0.001,95627.0,95623.0,0.10398632]
[1735248215307,0.00094747,95628.0,95623.0,0.10398632]
[1735248215712,0.001,95626.0,95623.0,0.10398632]
[1735248216010,0.00094747,95628.0,95623.0,0.10398632]
[1735248216371,0.00194747,95628.0,95623.0,0.10998632]
[1735248217005,0.00194747,95628.0,95623.0,0.006]
[1735248217406,0.001,95625.0,95623.0,0.006]
[1735248217649,0.0008958,95624.0,95623.0,0.006]
[1735248218026,0.0008958,95624.0,95623.0,0.015]
[1735248218442,0.0008958,95624.0,95623.0,0.009]
[1735248218640,0.001,95625.0,95623.0,0.015]
[1735248218844,0.0008958,95624.0,95623.0,0.015]
[1735248219269,0.0008958,95624.0,95623.0,0.009]
[1735248219501,0.0018958,95624.0,95623.0,0.007]
[1735248220687,0.0018958,95624.0,95623.0,0.016]
[1735248220895,0.0018958,95624.0,95623.0,0.007]
[1735248221375,0.0028958,95624.0,95623.0,0.016]
[1735248228238,0.0018958,95624.0,95623.0,0.009]
[1735248228566,0.0028958,95624.0,95623.0,0.017]
[1735248229394,0.0018958,95624.0,95623.0,0.008]
[1735248229715,0.14454189,95624.0,95623.0,0.017]
[1735248229877,0.14354189,95624.0,95623.0,0.008]
[1735248230283,0.14354189,95624.0,95623.0,0.017]
[1735248230716,0.0500958,95624.0,95618.0,8.55e-05]
[1735248230915,0.0831,95623.0,95618.0,8.55e-05]
[1735248231121,0.0008958,95622.0,95618.0,8.55e-05]
[1735248231354,0.0831,95621.0,95618.0,8.55e-05]
[1735248231565,0.0831,95619.0,95618.0,8.55e-05]
[1735248231760,0.0839958,95619.0,95618.0,8.55e-05]
[1735248231931,0.0839958,95619.0,95618.0,0.0020855]
[1735248232765,0.2720958,95619.0,95618.0,0.0020855]
[1735248232958,0.2712,95619.0,95618.0,0.0020855]
[1735248233336,0.2722,95619.0,95618.0,0.0090855]
[1735248233736,0.2722,95619.0,95618.0,0.0130855]
[1735248236783,0.28688598,95619.0,95618.0,0.0130855]
[1735248238968,0.09878598,95619.0,95618.0,0.0130855]
[1735248239183,0.09968178,95619.0,95618.0,0.0130855]
[1735248241607,0.01568598,95619.0,95618.0,0.0130855]
[1735248242713,0.01568598,95619.0,95618.0,0.11707182]
[1735248243349,0.01568598,95619.0,95618.0,0.65065015]
[1735248244135,0.01568598,95619.0,95618.0,0.57765015]
[1735248244437,0.01568598,95619.0,95618.0,0.62421597]
[1735248245865,0.01568598,95619.0,95618.0,0.39138685]
[1735248246072,0.01568598,95619.0,95618.0,0.39147235]
[1735248247112,0.01568598,95619.0,95618.0,0.57957459]
[1735248248770,0.001,95619.0,95618.0,0.57957459]
[1735248248981,0.0209595,95632.0,95618.0,0.57957459]
[1735248248982,0.1881,95659.0,95642.0,0.1]
[1735248249196,0.14061091,95663.0,95654.0,0.209086]
[1735248249405,0.07301874,95660.0,95659.0,0.459075]
[1735248249614,0.14061091,95663.0,95662.0,0.35]
[1735248249615,0.10909465,95663.0,95662.0,0.35]
[1735248249903,0.10909465,95663.0,95662.0,0.80951943]
[1735248250120,0.18770186,95666.0,95665.0,0.373]
[1735248250323,0.18770186,95666.0,95665.0,0.32344167]
[1735248250542,0.18770186,95666.0,95665.0,0.29090856]
[1735248250746,0.18821904,95666.0,95665.0,0.29090856]
[1735248251373,0.00951718,95666.0,95665.0,0.29190856]
[1735248251989,0.00951718,95666.0,95665.0,1.12410538]
[1735248252200,1.8e-07,95666.0,95665.0,1.14710538]
[1735248252608,7e-05,95703.0,95684.0,0.309021]
[1735248252808,0.00032602,95685.0,95684.0,0.56300732]
[1735248253827,0.00032602,95685.0,95684.0,0.91032235]
[1735248254100,0.00021992,95685.0,95684.0,0.91132235]
[1735248254415,0.00021992,95685.0,95684.0,1.39620414]
[1735248254618,0.1881,95722.0,95702.0,0.208982]
[1735248254906,0.00015494,95717.0,95704.0,0.208977]
[1735248255371,0.00015494,95717.0,95695.0,0.15]
[1735248255618,0.00015494,95717.0,95697.0,0.15]
[1735248255865,0.00015494,95717.0,95713.0,0.23270362]
[1735248256360,0.00015494,95717.0,95714.0,0.18600196]
[1735248257118,0.02056007,95715.0,95714.0,0.09297153]
[1735248257592,0.02056007,95715.0,95714.0,0.10197153]
[1735248257839,0.02056007,95715.0,95714.0,0.09297153]
[1735248258334,0.02056007,95715.0,95713.0,0.004]
[1735248258587,0.02056007,95715.0,95709.0,0.16575417]
[1735248259310,0.02056007,95715.0,95714.0,0.008]
[1735248259546,0.02056007,95715.0,95709.0,0.16575417]
[1735248259787,0.02056007,95715.0,95707.0,0.38270362]
[1735248260067,0.1881,95714.0,95708.0,0.15]
[1735248260276,0.1881,95714.0,95710.0,0.23270362]
[1735248260692,0.1881,95714.0,95713.0,0.23270362]
[1735248261106,0.1881,95714.0,95709.0,0.009]
[1735248261494,0.1881,95714.0,95707.0,0.15]
[1735248261691,0.1881,95714.0,95713.0,0.49253464]
[1735248262284,0.1881,95714.0,95713.0,1.25633102]
[1735248262705,0.1881,95714.0,95713.0,0.97741643]
[1735248262868,0.02015212,95717.0,95714.0,0.15]
[1735248263819,0.01915212,95717.0,95714.0,0.15]
[1735248264140,0.001,95714.0,95705.0,0.15]
[1735248264587,0.1,95735.0,95705.0,0.15]
[1735248264588,0.092012,95740.0,95705.0,0.25]
[1735248264781,0.10398632,95739.0,95706.0,0.208973]
[1735248265033,0.10398632,95739.0,95712.0,0.27793214]
[1735248265358,0.001,95717.0,95712.0,0.27793214]
[1735248265631,0.001,95717.0,95713.0,0.57359393]
[1735248266218,0.001,95717.0,95714.0,0.34198682]
[1735248267007,0.02080294,95724.0,95716.0,0.18525112]
[1735248267212,0.001,95717.0,95716.0,0.18525112]
[1735248267392,0.0833,95719.0,95716.0,0.18525112]
[1735248267595,0.0833,95719.0,95715.0,0.13894766]
[1735248267823,0.001,95717.0,95715.0,0.13894766]
[1735248268198,0.001,95717.0,95716.0,0.14294766]
[1735248268781,0.001,95717.0,95716.0,0.13894766]
[1735248268943,0.002,95717.0,95716.0,0.34186032]
[1735248269137,0.001,95717.0,95716.0,0.34186032]
[1735248269539,0.002,95717.0,95716.0,0.35086032]
[1735248269867,0.10398632,95738.0,95716.0,0.34186032]
[1735248270072,0.001,95717.0,95716.0,0.35086032]
[1735248270474,0.02060321,95717.0,95716.0,0.34186032]
[1735248270651,0.02160321,95717.0,95716.0,0.35686032]
[1735248270855,0.002,95717.0,95716.0,0.35686032]
[1735248271058,0.001,95717.0,95716.0,0.34786032]
[1735248271461,0.001,95717.0,95716.0,0.006]
[1735248272063,0.001,95717.0,95716.0,0.20998632]
[1735248272226,0.001,95717.0,95716.0,0.38298632]
[1735248272457,0.001,95717.0,95716.0,0.36898632]
[1735248272858,0.001,95717.0,95716.0,0.71026824]
[1735248273583,0.001,95717.0,95716.0,0.78276824]
[1735248274002,0.02097,95759.0,95728.0,0.208923]
[1735248274205,0.02097,95757.0,95729.0,0.10398632]
[1735248274574,0.02112702,95732.0,95729.0,0.10398632]
[1735248274989,0.01924616,95732.0,95729.0,0.10398632]
[1735248275218,0.02097,95757.0,95729.0,0.10398632]
[1735248275417,0.02097,95757.0,95730.0,0.57222279]
[1735248275622,0.02097,95759.0,95731.0,0.10398632]
[1735248275890,0.05813671,95759.0,95731.0,0.10398632]
[1735248276054,0.05813671,95759.0,95745.0,0.09236055]
[1735248276469,0.01898006,95760.0,95745.0,0.27184687]
[1735248276674,0.001,95757.0,95749.0,0.092012]
[1735248276871,0.001,95757.0,95750.0,0.10398632]
[1735248277088,0.000171,95762.0,95750.0,0.10398632]
[1735248277324,0.00068767,95762.0,95747.0,0.15]
[1735248277495,0.001,95759.0,95754.0,0.1847211]
[1735248277689,0.02073136,95755.0,95754.0,0.1847211]
[1735248278335,0.02073136,95755.0,95754.0,0.34088598]
[1735248278875,0.02073136,95755.0,95754.0,0.52560708]
[1735248279079,0.02073136,95755.0,95754.0,0.67560708]
[1735248279285,0.00068767,95762.0,95754.0,0.67560708]
[1735248279490,0.00068767,95762.0,95755.0,0.15]
[1735248279701,0.00068767,95762.0,95754.0,0.53460708]
[1735248279906,0.00068767,95762.0,95754.0,0.53960708]
[1735248280161,0.00068767,95762.0,95754.0,0.53060708]
[1735248280379,0.00068767,95762.0,95754.0,0.53460708]
[1735248280789,0.00068767,95762.0,95760.0,0.23094087]
[1735248281018,0.300825,95780.0,95760.0,0.23094087]
[1735248281242,0.00015487,95769.0,95755.0,0.34088598]
[1735248281951,0.00015487,95769.0,95768.0,0.13862362]
[1735248282150,0.137612,95790.0,95768.0,0.13862362]
[1735248282762,0.137612,95790.0,95768.0,0.34088598]
[1735248282945,0.02040911,95769.0,95768.0,0.34088598]
[1735248283876,0.02040911,95769.0,95761.0,0.09246176]
[1735248284723,0.208848,95764.0,95761.0,0.09246176]
[1735248284877,0.31283432,95764.0,95763.0,0.09246176]
[1735248285101,0.27692548,95764.0,95763.0,0.09246176]
[1735248285666,0.27692548,95764.0,95755.0,0.00015487]
[1735248285867,0.12117003,95768.0,95755.0,0.00015487]
[1735248286642,0.208847,95764.0,95755.0,0.00015487]
[1735248287381,0.208855,95760.0,95755.0,0.00015487]
[1735248287555,0.03104253,95763.0,95755.0,0.00015487]
[1735248287843,0.208847,95764.0,95755.0,0.00015487]
[1735248288052,0.22773603,95764.0,95755.0,0.00015487]
[1735248288232,0.01888903,95764.0,95755.0,0.00015487]
[1735248288385,0.12117003,95768.0,95755.0,0.00215487]
[1735248288591,0.02040911,95769.0,95755.0,0.10614119]
[1735248288787,0.22924511,95769.0,95755.0,0.00215487]
[1735248288991,0.0788,95767.0,95755.0,0.00015487]
[1735248289215,0.0788,95767.0,95755.0,0.00515487]
[1735248289417,0.0788,95767.0,95755.0,0.00415487]
[1735248289785,0.0788,95767.0,95755.0,0.01215487]
[1735248289977,0.0788,95767.0,95755.0,0.00415487]
[1735248290442,0.0788,95767.0,95755.0,0.01315487]
[1735248290662,0.0788,95767.0,95755.0,0.00915487]
[1735248291022,0.0788,95767.0,95755.0,0.01215487]
[1735248291604,0.02040911,95769.0,95755.0,0.01215487]
[1735248292069,0.02040911,95769.0,95755.0,0.00915487]
[1735248292296,0.02040911,95769.0,95755.0,0.01315487]
[1735248293032,0.02040911,95769.0,95755.0,0.00415487]
[1735248293501,0.02040911,95769.0,95755.0,0.01215487]
[1735248293708,0.02040911,95769.0,95756.0,0.11444798]
[1735248293949,0.02040911,95769.0,95756.0,0.10398632]
[1735248294160,0.0492,95790.0,95759.0,0.192012]
[1735248294367,0.02141271,95770.0,95760.0,0.10398632]
[1735248294579,0.02141271,95770.0,95762.0,0.231851]
[1735248294789,0.02141271,95770.0,95763.0,0.10398632]
[1735248295280,0.0492,95790.0,95763.0,0.10398632]
[1735248295281,0.0492,95790.0,95777.0,0.13869265]
[1735248295904,0.02128505,95778.0,95777.0,0.13869265]
[1735248296194,0.02128505,95778.0,95776.0,0.18483149]
[1735248297172,0.02128505,95778.0,95777.0,0.53302423]
[1735248297379,0.000171,95781.0,95777.0,0.53402423]
[1735248297605,0.000171,95781.0,95777.0,0.53002423]
[1735248297779,0.000171,95781.0,95777.0,0.52902423]
[1735248297979,0.000171,95781.0,95777.0,0.34419274]
[1735248298944,0.000171,95781.0,95777.0,0.34819274]
[1735248299467,0.000171,95781.0,95777.0,0.35219274]
[1735248299679,0.000171,95781.0,95780.0,0.13982778]
[1735248300764,0.000171,95781.0,95780.0,0.35319274]
[1735248301167,0.02351737,95788.0,95780.0,0.35319274]
[1735248301168,0.01232997,95788.0,95780.0,0.35319274]
[1735248301342,0.20877,95799.0,95780.0,0.35319274]
[1735248301780,0.02111749,95788.0,95780.0,0.35819274]
[1735248301988,0.02111749,95788.0,95780.0,0.014]
[1735248302295,0.02111749,95788.0,95780.0,0.009]
[1735248302706,0.23218079,95799.0,95780.0,0.01]
[1735248302848,0.208772,95798.0,95780.0,0.01]
[1735248303057,0.02064886,95791.0,95781.0,0.10398632]
[1735248304943,0.02064886,95791.0,95781.0,0.11198632]
[1735248305365,0.092012,95800.0,95781.0,0.011]
[1735248305567,0.208788,95791.0,95781.0,0.011]
[1735248306144,0.20878,95795.0,95781.0,0.011]
[1735248306341,8.55e-05,95798.0,95781.0,0.011]
[1735248306789,0.02084468,95790.0,95782.0,0.10398632]
[1735248308759,0.02084468,95790.0,95782.0,0.10698632]
[1735248309649,0.02084468,95790.0,95782.0,0.11498632]
[1735248310056,0.02084468,95790.0,95782.0,0.011]
[1735248310256,0.0469,95788.0,95782.0,0.011]
[1735248310460,0.0798,95787.0,95782.0,0.011]
[1735248310658,0.22963568,95790.0,95782.0,0.008]
[1735248310879,0.02084468,95790.0,95782.0,0.008]
[1735248311176,0.02084468,95790.0,95782.0,0.009]
[1735248311766,0.02084468,95790.0,95783.0,0.00884]
[1735248311897,0.31169244,95803.0,95782.0,0.008]
[1735248311898,0.23189244,95803.0,95782.0,0.008]
[1735248312280,0.208774,95797.0,95782.0,0.011]
[1735248312454,0.208776,95796.0,95782.0,0.011]
[1735248312657,0.208786,95792.0,95782.0,0.011]
[1735248313041,0.208786,95792.0,95782.0,0.003]
[1735248313238,0.02140743,95791.0,95782.0,0.008]
[1735248313444,0.20879,95790.0,95782.0,0.008]
[1735248313659,0.02140743,95791.0,95782.0,0.003]
[1735248313881,0.02140743,95791.0,95782.0,0.008]
[1735248314237,0.02140743,95791.0,95769.0,0.0794]
[1735248314478,0.02140743,95791.0,95770.0,0.10398632]
[1735248314681,0.02140743,95791.0,95782.0,0.008]
[1735248314931,0.02140743,95791.0,95782.0,0.002]
[1735248315052,0.04389714,95790.0,95769.0,0.0794]
[1735248315267,0.0477,95789.0,95762.0,0.2431435]
[1735248315467,0.092012,95780.0,95769.0,0.001]
[1735248315658,0.208833,95770.0,95769.0,0.001]
[1735248316050,0.55758249,95770.0,95769.0,0.001]
[1735248316310,0.63422364,95770.0,95769.0,0.001]
[1735248316653,0.53023732,95770.0,95769.0,0.001]
[1735248316874,0.35359617,95770.0,95760.0,0.0931435]
[1735248317077,0.35359617,95770.0,95769.0,0.002]
[1735248317297,0.48316365,95770.0,95769.0,0.001]
[1735248317750,0.48316365,95770.0,95769.0,0.002]
[1735248318144,0.58714997,95770.0,95769.0,0.002]
[1735248318354,0.68762967,95770.0,95769.0,0.002]
[1735248319087,0.208864,95756.0,95755.0,0.00032587]
[1735248320556,0.208864,95756.0,95755.0,0.00332587]
[1735248320915,0.208864,95756.0,95755.0,0.00032587]
[1735248321253,0.208847,95764.0,95755.0,0.00332587]
[1735248321796,0.25273264,95764.0,95755.0,0.00332587]
[1735248322195,0.208856,95760.0,95755.0,0.00432587]
[1735248322745,0.208856,95760.0,95755.0,0.00132587]
[1735248322896,0.208856,95760.0,95755.0,0.00432587]
[1735248323102,0.208856,95760.0,95755.0,0.00132587]
[1735248323304,0.208856,95760.0,95755.0,0.00032587]
[1735248323500,0.208856,95760.0,95755.0,0.00132587]
[1735248324309,0.02289982,95759.0,95755.0,0.00132587]
[1735248325256,0.208859,95758.0,95755.0,0.00132587]
[1735248325760,0.417719,95758.0,95755.0,0.00032587]
[1735248326166,0.417719,95758.0,95755.0,0.00232587]
[1735248326344,0.208864,95756.0,95755.0,0.00032587]
[1735248326776,0.208864,95756.0,95755.0,0.00332587]
[1735248326894,0.208864,95756.0,95755.0,0.00032587]
[1735248328936,0.208864,95756.0,95755.0,0.00132587]
[1735248329345,0.208864,95756.0,95755.0,0.00032587]
[1735248329568,0.208864,95756.0,95755.0,0.00332587]
[1735248329768,0.26354533,95756.0,95755.0,0.00332587]
[1735248330561,0.26354533,95756.0,95755.0,0.00432587]
[1735248330767,0.208864,95756.0,95755.0,0.00432587]
[1735248330966,0.208864,95756.0,95755.0,0.00132587]
[1735248331197,0.23794932,95758.0,95755.0,0.00132587]
[1735248331934,0.23794932,95758.0,95755.0,0.00032587]
[1735248332370,0.208864,95756.0,95755.0,0.00132587]
[1735248332789,0.208864,95756.0,95755.0,0.00032587]
[1735248333020,0.208864,95756.0,95755.0,0.00332587]
[1735248333232,0.208864,95756.0,95755.0,0.00032587]
[1735248333646,0.208864,95756.0,95755.0,0.00432587]
[1735248334230,0.26354533,95756.0,95755.0,0.00432587]
[1735248334977,0.26354533,95756.0,95755.0,0.00332587]
[1735248335234,0.36753165,95756.0,95755.0,0.00332587]
[1735248335403,0.36753165,95756.0,95755.0,0.00032587]
[1735248335789,0.36753165,95756.0,95755.0,0.00132587]
[1735248336557,0.36753165,95756.0,95755.0,0.00032587]
[1735248336959,0.36753165,95756.0,95755.0,0.00132587]
[1735248337693,0.44563165,95756.0,95755.0,0.00132587]
[1735248341004,0.208864,95756.0,95755.0,0.00132587]
[1735248343142,0.02909032,95758.0,95755.0,0.00132587]
[1735248343339,8.55e-05,95769.0,95755.0,0.00132587]
[1735248344108,8.55e-05,95769.0,95756.0,0.18178632]
[1735248344322,8.55e-05,95769.0,95767.0,0.208838]
[1735248344510,8.55e-05,95769.0,95768.0,0.10398632]
[1735248345647,0.0010855,95769.0,95768.0,0.10398632]
[1735248345775,8.55e-05,95769.0,95768.0,0.10398632]
[1735248345978,8.55e-05,95769.0,95768.0,0.11098632]
[1735248346182,8.55e-05,95769.0,95768.0,0.14298632]
[1735248346383,8.55e-05,95769.0,95768.0,0.44303049]
[1735248346605,8.55e-05,95769.0,95768.0,0.44198632]
[1735248347164,8.55e-05,95769.0,95768.0,0.51788632]
[1735248348371,8.55e-05,95769.0,95768.0,0.54636623]
[1735248350165,8.55e-05,95769.0,95768.0,0.51788632]
[1735248350540,8.55e-05,95769.0,95768.0,0.39488632]
[1735248350713,8.55e-05,95769.0,95768.0,0.38464784]
[1735248350911,0.208801,95785.0,95768.0,0.33564784]
[1735248351331,0.208811,95781.0,95768.0,0.25974784]
[1735248351537,0.208811,95781.0,95768.0,0.11998632]
[1735248351738,0.208811,95781.0,95768.0,0.11298632]
[1735248351948,0.208811,95780.0,95768.0,0.015]
[1735248352143,0.417623,95780.0,95768.0,0.015]
[1735248352347,0.04880097,95779.0,95768.0,0.015]
[1735248352573,0.04880097,95779.0,95758.0,0.049]
[1735248352770,0.04880097,95779.0,95768.0,0.002]
[1735248352928,0.02071113,95776.0,95768.0,0.002]
[1735248353334,0.02071113,95776.0,95759.0,0.10398632]
[1735248353529,0.02071113,95776.0,95768.0,0.002]
[1735248354051,0.02783231,95775.0,95768.0,0.011]
[1735248354417,0.02783231,95775.0,95768.0,0.002]
[1735248355224,0.02071113,95776.0,95768.0,0.002]
[1735248355435,0.208824,95774.0,95756.0,0.000171]
[1735248355653,0.208824,95774.0,95759.0,0.003]
[1735248355877,0.208824,95774.0,95768.0,0.006]
[1735248355878,0.417649,95774.0,95768.0,0.006]
[1735248356081,0.208829,95772.0,95759.0,0.003]
[1735248356277,0.208829,95772.0,95756.0,0.000171]
[1735248356496,0.208829,95772.0,95768.0,0.001]
[1735248356725,0.208829,95772.0,95756.0,0.001171]
[1735248357135,0.208829,95772.0,95768.0,0.003]
[1735248357332,0.208829,95772.0,95756.0,0.002171]
[1735248357579,0.29420877,95772.0,95756.0,0.002171]
[1735248358276,0.08537977,95772.0,95768.0,0.004]
[1735248358489,0.02071113,95776.0,95768.0,0.004]
[1735248359021,0.02071113,95776.0,95757.0,0.03698632]
[1735248359816,0.02071113,95776.0,95768.0,0.001]
[1735248360221,0.02071113,95776.0,95756.0,0.000171]
[1735248360449,0.02295231,95775.0,95757.0,0.208862]
[1735248360652,0.02295231,95775.0,95757.0,0.209862]
[1735248361028,0.02295231,95775.0,95768.0,0.003]
[1735248361227,0.02295231,95775.0,95757.0,0.209862]
[1735248361682,0.02295231,95775.0,95757.0,0.212862]
[1735248361936,0.02295231,95775.0,95757.0,0.208862]
[1735248362139,0.02524754,95774.0,95757.0,0.208862]
[1735248362818,0.02524754,95774.0,95756.0,0.10415732]
[1735248363188,0.02524754,95774.0,95757.0,0.001]
[1735248363420,0.02524754,95774.0,95768.0,0.002]
[1735248363638,0.02524754,95774.0,95756.0,0.10415732]
[1735248363809,0.04635937,95773.0,95756.0,0.10415732]
[1735248364196,0.04635937,95773.0,95756.0,0.10715732]
[1735248364374,0.04635937,95773.0,95756.0,0.10415732]
[1735248364673,0.03657118,95774.0,95768.0,0.003]
[1735248364971,0.02071113,95776.0,95759.0,0.208857]
[1735248365349,0.02071113,95776.0,95760.0,0.10398632]
[1735248365554,0.02071113,95776.0,95761.0,0.0791]
[1735248365769,0.02071113,95776.0,95762.0,0.31283732]
[1735248365995,0.02071113,95776.0,95768.0,0.001]
[1735248366193,0.11680906,95785.0,95768.0,0.001]
[1735248366194,0.03660906,95785.0,95769.0,0.31282132]
[1735248366389,0.03660906,95785.0,95773.0,0.208826]
[1735248366730,0.03660906,95785.0,95775.0,0.208822]
[1735248366935,8.55e-05,95785.0,95777.0,0.208818]
[1735248367590,8.55e-05,95785.0,95778.0,0.10398632]
[1735248369282,8.55e-05,95785.0,95777.0,0.217818]
[1735248369283,8.55e-05,95785.0,95777.0,0.009]
[1735248369688,0.02404365,95784.0,95777.0,0.009]
[1735248369889,0.02404365,95784.0,95766.0,0.15]
[1735248370149,0.02404365,95784.0,95778.0,0.003]
[1735248370368,0.02404365,95784.0,95778.0,0.011]
[1735248370529,0.02404365,95784.0,95768.0,0.15]
[1735248370681,0.02404365,95784.0,95768.0,0.25398632]
[1735248370940,0.02404365,95784.0,95777.0,0.013]
[1735248371147,0.02404365,95784.0,95777.0,0.004]
[1735248371615,0.02404365,95784.0,95778.0,0.009]
[1735248371815,0.02404365,95784.0,95777.0,0.004]
[1735248372010,0.02404365,95784.0,95768.0,0.25398632]
[1735248372549,0.01338922,95783.0,95768.0,0.25798632]
[1735248372753,0.01338922,95783.0,95768.0,0.004]
[1735248372961,0.0782,95769.0,95753.0,0.13976152]
[1735248373487,0.20884,95767.0,95755.0,0.00032587]
[1735248373689,0.0782,95769.0,95755.0,0.00032587]
[1735248373902,0.208853,95761.0,95755.0,0.00032587]
[1735248374096,0.0478,95767.0,95757.0,0.003171]
[1735248374299,0.02122016,95759.0,95757.0,0.010171]
[1735248374512,0.0478,95767.0,95757.0,0.010171]
[1735248374709,0.03038305,95767.0,95757.0,0.010171]
[1735248374909,0.03174111,95766.0,95757.0,0.010171]
[1735248375142,0.03174111,95766.0,95757.0,0.003171]
[1735248375646,0.208844,95765.0,95757.0,0.009171]
[1735248375898,0.208856,95760.0,95757.0,0.013171]
[1735248376104,0.208859,95758.0,95757.0,0.013171]
[1735248376327,0.208859,95758.0,95757.0,0.009171]
[1735248376742,0.208859,95758.0,95757.0,0.011171]
[1735248376953,0.208859,95758.0,95757.0,0.002171]
[1735248377161,0.208859,95758.0,95757.0,0.006171]
[1735248377162,0.330859,95758.0,95757.0,0.006171]
[1735248377336,0.42066201,95758.0,95757.0,0.000171]
[1735248377544,0.42066201,95758.0,95757.0,0.001171]
[1735248377757,0.42066201,95758.0,95757.0,0.005171]
[1735248377931,0.42066201,95758.0,95757.0,0.001171]
[1735248378346,0.42066201,95758.0,95757.0,0.004171]
[1735248378347,0.52464833,95758.0,95757.0,0.004171]
[1735248378791,0.52464833,95758.0,95757.0,0.003171]
[1735248379233,0.52464833,95758.0,95757.0,0.004171]
[1735248379641,0.55567439,95758.0,95757.0,0.004171]
[1735248380052,0.55567439,95758.0,95757.0,0.001171]
[1735248380233,0.55567439,95758.0,95757.0,0.000171]
[1735248380632,0.55667439,95758.0,95757.0,0.000171]
[1735248381940,0.55567439,95758.0,95757.0,0.000171]
[1735248382135,0.208872,95753.0,95728.0,0.20459187]
[1735248382373,0.05912146,95752.0,95728.0,0.20459187]
[1735248382485,0.208875,95751.0,95728.0,0.20459187]
[1735248383334,0.208875,95751.0,95728.0,0.20559187]
[1735248383537,0.05912146,95752.0,95728.0,0.20559187]
[1735248383735,0.05912146,95752.0,95728.0,0.001]
[1735248383943,0.08237971,95751.0,95732.0,0.208915]
[1735248384347,0.08237971,95751.0,95728.0,0.212923]
[1735248384549,0.03115531,95758.0,95734.0,0.0798]
[1735248384925,0.03115531,95758.0,95740.0,0.092012]
[1735248385138,0.03115531,95758.0,95749.0,0.208877]
[1735248386507,0.00012925,95758.0,95749.0,0.208877]
[1735248387460,0.00012925,95758.0,95749.0,0.209877]
[1735248388075,0.00012925,95758.0,95749.0,0.208877]
[1735248388447,0.00012925,95758.0,95749.0,0.210877]
[1735248389146,0.00012925,95758.0,95749.0,0.002]
[1735248389601,0.0053904,95758.0,95749.0,0.005]
[1735248389802,0.0053904,95758.0,95749.0,0.003]
[1735248390191,0.0053904,95758.0,95749.0,0.008]
[1735248390369,0.0053904,95758.0,95749.0,0.003]
[1735248390716,0.00012925,95758.0,95749.0,0.003]
[1735248390960,0.00012925,95758.0,95749.0,0.011]
[1735248391159,0.00012925,95758.0,95749.0,0.003]
[1735248391360,0.00012925,95758.0,95749.0,0.011]
[1735248392698,0.00012925,95758.0,95749.0,0.008]
[1735248392898,0.00012925,95758.0,95749.0,0.0080855]
[1735248393101,0.00012925,95758.0,95749.0,0.0110855]
[1735248395745,0.00012925,95758.0,95749.0,0.0080855]
[1735248397029,0.00012925,95758.0,95757.0,0.208862]
[1735248397202,0.00012925,95758.0,95757.0,0.36004832]
[1735248398231,0.00012925,95758.0,95757.0,0.51004832]
[1735248398593,0.00012925,95758.0,95757.0,0.61004832]
[1735248399012,0.00012925,95758.0,95757.0,0.71484832]
[1735248399425,0.00012925,95758.0,95757.0,1.06346745]
[1735248399949,0.00012925,95758.0,95757.0,1.06046745]
[1735248400161,0.00412925,95758.0,95757.0,1.06846745]
[1735248400577,0.00412925,95758.0,95757.0,1.06046745]
[1735248400782,8.55e-05,95768.0,95767.0,0.35884]
[1735248400977,8.55e-05,95768.0,95767.0,0.46282632]
[1735248402639,8.55e-05,95768.0,95767.0,0.47082632]
[1735248403086,8.55e-05,95768.0,95767.0,0.47982632]
[1735248403510,8.55e-05,95768.0,95767.0,0.82517461]
[1735248405865,8.55e-05,95768.0,95767.0,0.81717461]
[1735248406318,8.55e-05,95768.0,95767.0,0.81617461]
[1735248406740,8.55e-05,95768.0,95767.0,0.81717461]
[1735248407121,8.55e-05,95768.0,95767.0,0.47882632]
[1735248408572,8.55e-05,95768.0,95767.0,0.57882632]
[1735248409979,8.55e-05,95768.0,95767.0,0.57182632]
[1735248410386,8.55e-05,95768.0,95767.0,0.56282632]
[1735248410786,8.55e-05,95768.0,95767.0,0.47782632]
[1735248412077,8.55e-05,95768.0,95767.0,0.57782632]
[1735248412610,8.55e-05,95768.0,95767.0,0.57182632]
[1735248413025,0.0010855,95768.0,95767.0,0.57882632]
[1735248416026,0.03175753,95785.0,95767.0,0.36998632]
[1735248416280,0.03175753,95785.0,95780.0,0.20881]
[1735248418046,0.03175753,95785.0,95780.0,0.21281]
[1735248418324,0.03175753,95785.0,95780.0,0.22181]
[1735248418750,0.03189223,95785.0,95780.0,0.22181]
[1735248419258,0.0002202,95785.0,95783.0,0.208803]
[1735248419460,0.0002202,95785.0,95784.0,0.35503019]
[1735248419666,0.0002202,95785.0,95784.0,0.25398632]